[Event "Czech Championship Women 2022"]
[Site "Jaromerice nad Rokytnou"]
[Date "2022.05.24"]
[Round "1.1"]
[White "Sikorova, Olga"]
[Black "Pilsova, Karolina"]
[Result "1/2-1/2"]
[ECO "A11"]
[WhiteElo "2173"]
[BlackElo "2229"]
[Annotator "TA"]
[PlyCount "113"]
[EventDate "2022.05.24"]
[EventType "tourn"]
[EventCountry "CZE"]
[SourceTitle "playchess.com"]
[Source "ChessBase"]
[SourceQuality "1"]
[TimeControl "40/5400+30:1800+30"]

{[%evp 11,113,8,8,2,17,0,0,0,22,0,0,0,0,0,0,0,2,-2,0,0,0,0,0,0,0,0,0,-29,16,-18,-18,-18,36,0,0,0,75,72,87,65,114,107,105,97,106,109,106,101,166,149,146,48,132,101,130,43,181,180,170,12,12,12,26,12,40,37,17,0,100,43,181,181,290,294,300,314,324,174,174,174,174,174,174,174,174,174,174,174,174,174,174,174,2676,2224,29954,29945,12836,6140,1660,0,0,0,0,0]} 1. Nf3 {[%emt 0:00:03]} d5 {[%emt 0:00:07]} 2. c4 {[%emt 0:00:17]} c6 {[%emt 0:00:05]} 3. g3 {[%emt 0:00:22]} Nf6 {[%emt 0:00:10]} 4. Bg2 {[%emt 0:00:11]} Bg4 {[%emt 0:00:17]} 5. cxd5 {[%emt 0:00:08]} Bxf3 {[%emt 0:00:23]} 6. Bxf3 {[%emt 0:00:05]} cxd5 {[%emt 0:00:07]} 7. O-O {[%emt 0:00:31] A11: English Opening: 1...c6.} Nc6 {[%emt 0:01:05]} 8. Bg2 {[%emt 0:00:23]} e6 {[%emt 0:01:31]} 9. Nc3 {[%emt 0:00:21] [#]} Bc5 $146 {[%emt 0:09:44]} ({Predecessor:} 9... Be7 10. d3 O-O 11. Bd2 Rc8 12. a3 Qd7 13. b4 Rfd8 14. Rc1 h6 15. Qb3 Nd4 {0-1 (40) Hera,I (2611)-Grachev,B (2612) Chess.com INT 2020}) 10. b3 {[%emt 0:04:51]} h5 {[%emt 0:05:31]} 11. Bb2 {[%emt 0:06:30]} h4 {[%emt 0:03:05]} 12. e3 {[%emt 0:13:33]} Qe7 {[%emt 0:13:45]} 13. d4 {[%emt 0:16:01]} Bb4 {[%emt 0:04:17]} 14. a3 {[%emt 0:11:43]} Bxc3 {[%emt 0:07:51]} 15. Bxc3 {[%emt 0:00:01]} Ne4 {[%emt 0:00:24]} 16. Bxe4 {[%emt 0:06:46]} dxe4 {[%emt 0:00:19]} 17. d5 {[%emt 0:00:54]} O-O-O {[%emt 0:19:52]} 18. Qg4 {[%emt 0:02:39] Prevents Qg5.} Rxd5 {[%emt 0:01:40] ...hxg3 is the strong threat.} 19. Qxe4 {[%emt 0:03:39]} Qg5 {[%emt 0:05:20]} 20. Rfc1 {[%emt 0:17:58]} hxg3 {[%emt 0:06:34]} 21. hxg3 {[%emt 0:00:27]} Qh5 {[%emt 0:09:43]} (21... Qh6 $11) 22. b4 {[%emt 0:04:52][%cal Bb3b4,Bb4b5][%mdl 32]} f5 {[%emt 0:04:12]} 23. Qg2 {[%emt 0:01:21]} Rhd8 {[%emt 0:03:12]} (23... Qg4 $11) 24. Bxg7 $16 {[%emt 0:01:11][%cal Ob4b5]} Kb8 {[%emt 0:01:18]} 25. Bc3 {[%emt 0:04:55]} Qe2 {[%emt 0:00:46]} (25... Ne5 $14 {should be considered.}) 26. Qf1 {[%emt 0:01:44]} Qg4 {[%emt 0:00:57]} 27. b5 {[%emt 0:01:02]} Ne5 {[%emt 0:01:00]} 28. Bxe5+ {[%emt 0:00:03]} Rxe5 {[%emt 0:00:02]} 29. Rc4 $1 {[%emt 0:01:48]} Qf3 {[%emt 0:00:44]} (29... Re4 $16 30. Rac1 Rxc4 31. Rxc4 (31. Qxc4 Rd1+ 32. Kg2 Rxc1 $16) 31... Qf3) 30. Rf4 $18 {[%emt 0:00:28]} Qh5 {[%emt 0:00:14]} 31. Rd4 {[%emt 0:00:25]} (31. Rh4 $16 Qf3 32. Rf4) 31... Red5 {[%emt 0:00:53]} (31... Rh8 32. Rh4 Qe8 33. Rxh8 Qxh8 34. Rc1 $16) (31... Rxd4 $1 $14 32. exd4 Rd5) 32. Rxd5 {[%emt 0:00:38]} Rxd5 $16 {[%emt 0:00:04][%mdl 4096] Endgame KQR-KQR} 33. a4 {[%emt 0:00:13]} (33. Qc4 $16) 33... Qf3 {[%emt 0:00:54]} (33... Rd8 $14) 34. Qc4 $1 $40 {[%emt 0:00:46][%mdl 128] White is out for blood.} Rd2 {[%emt 0:00:50]} 35. Qf4+ $2 {[%emt 0:00:36]} (35. Rf1 $1 $18) 35... Qxf4 $11 {[%emt 0:00:02]} 36. exf4 {[%emt 0:00:19] next Re1 is good for White. KR-KR} Kc7 {[%emt 0:00:22]} 37. Kf1 {[%emt 0:00:36]} Kb6 {[%emt 0:00:51]} 38. Re1 {[%emt 0:00:36]} Rd6 {[%emt 0:00:23]} 39. Rc1 {[%emt 0:00:29]} Ka5 {[%emt 0:00:31]} (39... Rd4 $11 {remains equal.}) 40. Rc4 {[%emt 0:00:25]} ({Better is} 40. Rc7 $16) 40... Rd2 {[%emt 0:00:33]} (40... Rd8 $14) 41. Rc7 $1 $18 {[%emt 0:00:53]} Kb6 {[%emt 0:02:27]} (41... Kxa4 $142 42. Rxb7 Rd5) 42. Re7 {[%emt 0:02:33]} Rd6 {[%emt 0:00:34]} 43. f3 {[%emt 0:04:40]} a6 {[%emt 0:01:46]} 44. Ke2 {[%emt 0:05:13]} (44. bxa6 $142 bxa6 45. g4) 44... axb5 {[%emt 0:01:46]} 45. axb5 {[%emt 0:00:02]} Kxb5 {[%emt 0:00:58]} 46. Rxb7+ {[%emt 0:00:02]} Kc5 {[%emt 0:00:40]} 47. Rc7+ {[%emt 0:01:51]} Kd5 {[%emt 0:01:55]} 48. Rc2 {[%emt 0:00:11]} Ra6 {[%emt 0:00:07] [#]} 49. Rd2+ $1 {[%emt 0:00:05]} Kc5 {[%emt 0:00:07]} 50. g4 {[%emt 0:00:33]} Ra4 {[%emt 0:05:55] [#]} 51. Ke3 $1 {[%emt 0:00:04]} fxg4 $2 {[%emt 0:01:33]} (51... Kc6 52. g5 Ra7) 52. fxg4 {[%emt 0:00:26]} e5 {[%emt 0:00:10]} 53. fxe5 {[%emt 0:00:41]} Rxg4 {[%emt 0:00:11]} 54. Kf3 {[%emt 0:00:12]} (54. Rd6 $142 Rh4 55. Kf3) 54... Rh4 {[%emt 0:07:09]} 55. e6 $2 {[%emt 0:01:49]} (55. Rd8 $18 {Threatening mate with e6.} Rh1 56. Ke4) 55... Rh6 $11 {[%emt 0:00:26]} 56. Re2 {[%emt 0:12:35] White wants to mate with e7.} Rh8 $1 {[%emt 0:00:26]} 57. Kf4 {[%emt 0:00:53] Weighted Error Value: White=0.26 (precise) /Black=0.47} 1/2-1/2

[Event "Czech Championship Women 2022"]
[Site "Jaromerice nad Rokytnou"]
[Date "2022.05.24"]
[Round "1.2"]
[White "Novosadova, Kristyna"]
[Black "Lhotska, Anna"]
[Result "1-0"]
[ECO "B94"]
[WhiteElo "2147"]
[BlackElo "2029"]
[Annotator "TA"]
[PlyCount "65"]
[EventDate "2022.05.24"]
[EventType "tourn"]
[EventCountry "CZE"]
[SourceTitle "playchess.com"]
[Source "ChessBase"]
[SourceQuality "1"]
[TimeControl "40/5400+30:1800+30"]

{[%evp 13,65,-21,12,8,42,44,43,40,53,50,22,32,39,27,39,66,50,0,52,-47,-58,-23,-24,-27,-20,-61,-57,-55,-61,-123,-50,-39,43,38,41,42,150,149,142,152,142,145,490,495,443,394,347,273,255,260,470,467,2421,2310]} 1. e4 {[%emt 0:00:04]} c5 {[%emt 0:00:05]} 2. Nf3 {[%emt 0:00:06]} d6 {[%emt 0:00:05]} 3. d4 {[%emt 0:00:06]} cxd4 {[%emt 0:00:06]} 4. Nxd4 {[%emt 0:00:05]} Nf6 {[%emt 0:00:07]} 5. Nc3 {[%emt 0:00:05]} a6 {[%emt 0:00:04]} 6. Bg5 {[%emt 0:00:08]} Nbd7 {[%emt 0:00:06]} 7. f4 {[%emt 0:00:08]} Qc7 {[%emt 0:00:10]} (7... e5 $5 {[%cal Re5d4]} 8. Nb3 Be7 $11) 8. Qf3 {[%emt 0:00:20] B94: Sicilian Najdorf: 6 Bg5 Nbd7.} h6 {[%emt 0:00:34] 8...b5 is more fashionable.} 9. Bxf6 {[%emt 0:02:47]} Nxf6 {[%emt 0:00:10]} 10. f5 {[%emt 0:00:29] White is slightly better.} Qc5 {[%emt 0:01:01]} 11. O-O-O {[%emt 0:00:58]} g5 {[%emt 0:01:04]} 12. fxg6 {[%emt 0:04:28] Nd5 is the strong threat.} Bg4 {[%emt 0:00:19]} 13. gxf7+ {[%emt 0:00:08]} Kxf7 {[%emt 0:00:05]} 14. Qd3 {[%emt 0:01:21] Threatens to win with Be2.} Bxd1 {[%emt 0:00:09]} 15. Qxd1 {[%emt 0:01:44]} (15. Nxd1 $5 {[%cal Rg2g3]} Qe5 16. Nc3 $11) 15... Bg7 {[%emt 0:01:50] [#]} 16. e5 $146 {[%emt 0:12:04]} (16. Na4 $14 Qg5+ 17. Kb1) ({Predecessor:} 16. Nf5 Rac8 17. Be2 Qe5 18. Bh5+ Kf8 19. Rf1 Rxc3 20. bxc3 Qxc3 21. Qd4 Qxd4 22. Nxd4 {0-1 (64) Haubro,M (2347)-Lindgren,P (2421) Stockholm 2017}) 16... dxe5 $15 {[%emt 0:07:17]} 17. Nb3 {[%emt 0:02:28]} Qe3+ {[%emt 0:09:22]} 18. Nd2 {[%emt 0:01:22]} Rhd8 {[%emt 0:05:12]} 19. Bc4+ {[%emt 0:00:34]} Ke8 {[%emt 0:15:41]} 20. Re1 {[%emt 0:00:43]} Qg5 {[%emt 0:02:28]} 21. Qe2 {[%emt 0:04:36]} (21. Bd3 $1 $15) 21... Rd4 {[%emt 0:08:18]} (21... h5 $1 $17 {aiming for ...Bh6.} 22. Bd3 Bh6) 22. Bd3 {[%emt 0:04:43]} Rad8 {[%emt 0:10:24]} ({Black should try} 22... Rc8 $1 $15) 23. Kb1 $1 $14 {[%emt 0:00:26][%mdl 1024] White has compensation.} Qg4 {[%emt 0:09:26]} 24. Nf3 {[%emt 0:05:24]} (24. Qxe5 $2 Ne4 $1 {[%mdl 512]} 25. Qxe4 (25. Bb5+ $2 Kf8 $19) 25... Rxe4 26. Ncxe4 Qxg2 $19) 24... Rb4 {[%emt 0:07:16]} (24... Rxd3 $14 25. cxd3 Nd5) 25. a3 $40 {[%emt 0:00:49][%mdl 128] White goes for the king.} (25. Qxe5 $2 Nd5 $1 {[%mdl 512]} 26. Nxd5 Bxe5 $19) 25... Rb6 {[%emt 0:00:39][%cal Oe5e4] [#]} 26. h3 $1 {[%emt 0:04:55]} (26. Nxe5 Qxe2 27. Bxe2 Rd4 $15) (26. Qxe5 $2 {[#]} Nd5 $1 {[%mdl 512]} 27. Nxd5 Bxe5 $19) 26... Qe6 {[%emt 0:06:17][%cal Oe5e4] Hoping for ...e4!} 27. Nxe5 {[%emt 0:00:55]} (27. Qxe5 Qxe5 28. Nxe5 Nd7 $11) 27... Nd5 $2 {[%emt 0:03:23][%mdl 8192] Loses the game.} (27... Rxd3 $16 28. cxd3 (28. Qxd3 Nd7 $16) 28... Nd7) 28. Qh5+ $18 {[%emt 0:03:23]} Kf8 {[%emt 0:00:48] And now ...Nxc3+ would win.} 29. Nxd5 {[%emt 0:28:29]} ({Don't take} 29. Ng6+ Qxg6 30. Bxg6 Nxc3+ 31. Ka1 Na4 32. Qf3+ Kg8 $18) 29... Rxd5 {[%emt 0:11:11]} 30. Qf3+ {[%emt 0:09:08]} ({Inferior is} 30. Rf1+ Bf6 31. Qxh6+ Ke8 $14) 30... Kg8 {[%emt 0:00:19]} 31. Bc4 {[%emt 0:00:06][%mdl 64] Skewer. Dancing on a razor blade.} Rxb2+ $2 {[%emt 0:01:22]} (31... Rbd6 {might work better.} 32. Nd3 (32. Bxd5 Qxd5 33. Qxd5+ Rxd5 $16) 32... Qf7) 32. Kxb2 {[%emt 0:01:25]} Rb5+ {[%emt 0:00:37]} (32... Bxe5+ $2 33. Ka2 Kh8 34. Bxd5) (32... Rxe5 $142 33. Bxe6+ Rxe6+ 34. c3 Rxe1 35. Qxb7 Re3 36. Qxa6 Rxc3) 33. Ka2 {[%emt 0:00:25] Weighted Error Value: White=0.15 (very precise) /Black=0.41} 1-0

[Event "Czech Championship Women 2022"]
[Site "Jaromerice nad Rokytnou"]
[Date "2022.05.24"]
[Round "1.3"]
[White "Koubova, Anna Marie"]
[Black "Petrova, Kristyna"]
[Result "1/2-1/2"]
[ECO "D85"]
[WhiteElo "2115"]
[BlackElo "2264"]
[Annotator "TA"]
[PlyCount "91"]
[EventDate "2022.05.24"]
[EventType "tourn"]
[EventCountry "CZE"]
[SourceTitle "playchess.com"]
[Source "ChessBase"]
[SourceQuality "1"]
[TimeControl "40/5400+30:1800+30"]

{[%evp 16,91,25,17,36,37,53,59,102,85,97,104,94,93,102,110,90,78,78,78,78,78,77,78,78,78,78,78,78,61,64,60,78,53,56,0,71,68,83,75,93,93,207,77,77,77,435,298,307,287,338,247,202,0,327,0,0,0,0,0,0,0,0,0,0,0,0,0,0,0,0,0,0,0,0,0,0,0]} 1. d4 {[%emt 0:00:07]} Nf6 {[%emt 0:00:06]} 2. c4 {[%emt 0:00:12]} g6 {[%emt 0:00:06]} 3. Nc3 {[%emt 0:00:23]} d5 {[%emt 0:00:07]} 4. cxd5 {[%emt 0:00:18]} Nxd5 {[%emt 0:00:06]} 5. e4 {[%emt 0:00:30]} Nxc3 {[%emt 0:00:06]} 6. bxc3 {[%emt 0:00:09]} Bg7 {[%emt 0:00:04]} 7. Nf3 {[%emt 0:00:18]} O-O {[%emt 0:00:18]} 8. Be2 {[%emt 0:01:32]} c5 {[%emt 0:00:12]} 9. O-O {[%emt 0:00:38]} Bg4 {[%emt 0:12:42] 9...b6 is becoming the main line. D85: Exchange Grünfeld: Unusual White 7th moves and lines with 7 Nf3.} 10. Be3 {[%emt 0:01:02]} Qa5 {[%emt 0:11:11]} 11. Rb1 {[%emt 0:33:16][%cal Ba1b1,Bb1b7,Bb7e7][%mdl 32]} cxd4 {[%emt 0:29:17] White is slightly better.} 12. cxd4 {[%emt 0:01:42]} Qxa2 {[%emt 0:04:23]} 13. Rxb7 {[%emt 0:04:37] [#]} Nc6 $146 {[%emt 0:13:09]} ({Predecessor:} 13... e6 14. h3 Bxf3 15. Bxf3 Nc6 16. e5 Qa6 17. Rb1 Rac8 18. Ra1 Qb5 19. Qa4 Qxa4 20. Rxa4 {½-½ (45) Alsina Leal,D (2521)-Aranda Marin,C (2372) Madrid 2016}) 14. d5 {[%emt 0:03:34]} Ne5 {[%emt 0:05:01]} 15. Rxe7 {[%emt 0:02:40]} a5 {[%emt 0:00:27]} 16. Bd4 {[%emt 0:31:11]} Nxf3+ {[%emt 0:09:32]} 17. Bxf3 {[%emt 0:00:12]} Bxf3 {[%emt 0:00:27]} 18. gxf3 {[%emt 0:00:08] Threatens to win with d6.} Qa3 {[%emt 0:05:02] [#]} 19. Bxg7 $1 {[%emt 0:00:33] White is more active.} Qxe7 {[%emt 0:00:02]} 20. Bxf8 {[%emt 0:00:15]} Qg5+ {[%emt 0:00:34]} 21. Kh1 {[%emt 0:00:09]} Rxf8 $16 {[%emt 0:00:48][%mdl 4096] Endgame KQR-KQR} 22. Rg1 {[%emt 0:02:39]} (22. Qd4 {seems wilder.} Ra8 23. d6 a4 24. Rd1) 22... Qf4 {[%emt 0:00:17]} 23. Qd3 {[%emt 0:05:13]} a4 {[%emt 0:02:01]} 24. Ra1 {[%emt 0:01:34]} Ra8 {[%emt 0:01:14]} 25. Qe3 {[%emt 0:05:33]} (25. d6 $14) 25... Qe5 {[%emt 0:01:14]} (25... Qxe3 $11 {keeps the balance.} 26. fxe3 a3) 26. Ra2 {[%emt 0:01:06]} Qb8 {[%emt 0:01:27] White must now prevent ...Qb1+.} 27. Ra3 {[%emt 0:00:36]} Qb5 {[%emt 0:01:02][%cal Rb5f1]} 28. Kg2 {[%emt 0:01:03] Prevents Qf1+.} Rc8 {[%emt 0:01:43]} (28... Qa5 $16) 29. Rc3 {[%emt 0:01:34]} (29. d6 $18 {has better winning chances.}) 29... Rxc3 {[%emt 0:01:30]} 30. Qxc3 {[%emt 0:00:05] KQ-KQ} h5 $2 {[%emt 0:00:41][%mdl 8192]} (30... Qa6 $16 {is a better chance.}) 31. d6 {[%emt 0:02:20]} Qg5+ {[%emt 0:00:24]} 32. Kf1 {[%emt 0:00:34]} Qb5+ {[%emt 0:00:17] [#]} 33. Ke1 $1 {[%emt 0:00:15] Strongly threatening Qc8+.} Kh7 {[%emt 0:00:50] [#]} 34. Kd2 $2 {[%emt 0:00:47]} (34. h4 $1 $18) 34... h4 $2 {[%emt 0:00:35][%mdl 8192]} (34... Qb6 $11 {and Black has nothing to worry.}) 35. Qf6 $2 {[%emt 0:00:28]} ({White must play} 35. Qc7 $18 Qg5+ 36. Ke2) 35... Qb4+ $11 {[%emt 0:00:18] The position is equal.} 36. Ke3 {[%emt 0:00:35]} Qe1+ {[%emt 0:00:24]} 37. Kf4 {[%emt 0:00:18]} Qc1+ {[%emt 0:00:17]} 38. Kg4 {[%emt 0:00:26]} Qg1+ $1 {[%emt 0:00:03]} 39. Kh3 {[%emt 0:00:49]} Qf1+ {[%emt 0:00:09]} 40. Kxh4 {[%emt 0:00:33]} Qxf2+ {[%emt 0:00:17]} 41. Kh3 {[%emt 0:11:51]} Qf1+ {[%emt 0:00:00]} 42. Kg3 {[%emt 0:06:32]} Qg1+ {[%emt 0:00:14]} 43. Kf4 {[%emt 0:01:51]} Qc1+ {[%emt 0:00:20]} 44. Kg3 {[%emt 0:00:32]} Qg1+ {[%emt 0:00:06]} 45. Kh3 {[%emt 0:00:46]} Qf1+ {[%emt 0:00:06]} 46. Kg3 {[%emt 0:00:51] Blacks defense is rewarded with a draw.  Weighted Error Value: White=0.32/Black=0.43} 1/2-1/2

[Event "Czech Championship Women 2022"]
[Site "Jaromerice nad Rokytnou"]
[Date "2022.05.24"]
[Round "1.4"]
[White "Trasakova, Adela"]
[Black "Nemcova, Karin"]
[Result "1/2-1/2"]
[ECO "D41"]
[WhiteElo "1842"]
[BlackElo "2181"]
[Annotator "TA"]
[PlyCount "60"]
[EventDate "2022.05.24"]
[EventType "tourn"]
[EventCountry "CZE"]
[SourceTitle "playchess.com"]
[Source "ChessBase"]
[SourceQuality "1"]
[TimeControl "40/5400+30:1800+30"]

{[%evp 17,60,9,43,17,9,16,13,14,0,10,9,9,9,7,9,9,10,10,27,18,16,25,45,10,24,0,0,0,0,0,0,0,0,0,0,0,0,0,0,0,0,0,0,0,92]} 1. d4 {[%emt 0:00:02]} Nf6 {[%emt 0:00:08]} 2. Nf3 {[%emt 0:00:02]} e6 {[%emt 0:00:09]} 3. g3 {[%emt 0:00:01]} d5 {[%emt 0:00:19]} 4. Bg2 {[%emt 0:00:02]} c5 {[%emt 0:00:16]} 5. O-O {[%emt 0:00:14]} Nc6 {[%emt 0:00:54]} 6. c4 {[%emt 0:00:28]} Be7 {[%emt 0:02:31]} 7. Nc3 {[%emt 0:03:43]} O-O {[%emt 0:04:32]} 8. cxd5 {[%emt 0:01:03]} Nxd5 {[%emt 0:01:11]} 9. Nxd5 {[%emt 0:02:23]} Qxd5 {[%emt 0:01:12]} 10. Ne5 {[%emt 0:04:18] D41: Queen's Gambit Declined: Semi-Tarrasch with 5 cxd5.} (10. Be3 $5 {[%cal Rf3e5]}) 10... Qxd4 {[%emt 0:01:23]} 11. Nxc6 {[%emt 0:02:36]} bxc6 {[%emt 0:00:22]} 12. Bxc6 {[%emt 0:07:20]} Rb8 {[%emt 0:00:28]} 13. Qc2 {[%emt 0:03:35]} Rd8 {[%emt 0:02:56]} 14. Rb1 {[%emt 0:04:03]} Ba6 {[%emt 0:06:49] [#]} 15. b3 $146 {[%emt 0:05:34] Against Qc4} ({Predecessor:} 15. Bf3 Bf6 16. Be3 Rxb2 17. Rxb2 Qxb2 18. Qxb2 Bxb2 19. Bxc5 Bd4 20. Bxd4 {½-½ (20) Neumeier,K (2300)-Larmuseau,M (2177) Vienna 2016}) 15... Rbc8 {[%emt 0:04:57]} 16. Be3 {[%emt 0:05:08]} Qe5 {[%emt 0:05:59]} 17. Bf3 {[%emt 0:03:00]} Bg5 {[%emt 0:05:32]} 18. Bxg5 {[%emt 0:02:55]} Qxg5 {[%emt 0:00:01]} 19. Rfd1 {[%emt 0:02:01]} g6 {[%emt 0:03:58]} 20. Rxd8+ {[%emt 0:04:23]} Rxd8 {[%emt 0:01:35]} 21. Rd1 {[%emt 0:01:01]} Rxd1+ {[%emt 0:03:12] The position is equal.} 22. Qxd1 $11 {[%emt 0:00:02][%mdl 4096] Endgame KQB-KQB} c4 {[%emt 0:03:02]} 23. bxc4 {[%emt 0:03:15]} Bxc4 {[%emt 0:00:29]} 24. Qc2 {[%emt 0:01:08]} Qc5 {[%emt 0:03:02]} 25. Kg2 {[%emt 0:04:37]} a5 {[%emt 0:01:09]} 26. a3 {[%emt 0:07:55]} Qb5 {[%emt 0:02:07]} 27. Qd2 {[%emt 0:01:54]} e5 {[%emt 0:05:31]} 28. Qd6 {[%emt 0:02:43]} a4 {[%emt 0:07:19]} 29. Bc6 {[%emt 0:03:46]} Qa5 {[%emt 0:00:26]} 30. Bf3 {[%emt 0:03:12]} Qc3 {[%emt 0:06:55] Weighted Error Value: White=0.04 (flawless) /Black=0.04 (flawless)} (30... Qb5 $11) 1/2-1/2